bitfinex-derivatives/quotes_BTCF0:USTF0_20251216
["timestamp","ask_amount","ask_price","bid_price","bid_amount"]
[1765916024107,0.17117297,87550.0,87549.0,0.0834946]
[1765916024413,0.02677934,87550.0,87549.0,0.0834946]
[1765916025014,0.06383934,87550.0,87549.0,0.0834946]
[1765916025213,0.09811934,87550.0,87549.0,0.0834946]
[1765916026214,0.09811934,87550.0,87549.0,0.0844946]
[1765916028120,0.02677934,87550.0,87549.0,0.0844946]
[1765916028716,0.06383934,87550.0,87549.0,0.0844946]
[1765916029020,0.06383934,87550.0,87549.0,0.0834946]
[1765916029212,0.06383934,87550.0,87549.0,0.0844946]
[1765916029913,0.06383934,87550.0,87549.0,0.0834946]
[1765916030113,0.06383934,87550.0,87549.0,0.0854946]
[1765916031214,0.06383934,87550.0,87549.0,0.1063446]
[1765916031413,0.06383934,87550.0,87549.0,0.1053446]
[1765916032123,0.02677934,87550.0,87549.0,0.1043446]
[1765916032327,0.3608,87558.0,87557.0,0.0834936]
[1765916032620,0.0267725,87558.0,87557.0,0.0834936]
[1765916033810,0.0267725,87558.0,87557.0,0.0844936]
[1765916034014,0.0981125,87558.0,87557.0,0.07307]
[1765916034212,0.0981125,87558.0,87557.0,0.07207]
[1765916034420,0.0981125,87558.0,87557.0,0.07307]
[1765916034621,0.0991125,87558.0,87557.0,0.07607]
[1765916035311,0.0981125,87558.0,87557.0,0.07407]
[1765916036915,0.0981125,87558.0,87557.0,0.07307]
[1765916038517,0.0981125,87558.0,87557.0,0.07207]
[1765916038823,0.0991125,87558.0,87557.0,0.07307]
[1765916039725,0.0991125,87558.0,87557.0,0.001]
[1765916040310,0.0991125,87558.0,87557.0,0.03679]
[1765916040712,0.0991125,87558.0,87557.0,0.07307]
[1765916041313,0.0991125,87558.0,87557.0,0.001]
[1765916041915,0.0827649,87547.0,87530.0,0.011427]
[1765916042123,0.4435649,87547.0,87529.0,0.01147485]
[1765916042326,0.4435649,87547.0,87536.0,0.02085]
[1765916042519,0.4435649,87547.0,87546.0,0.07224136]
[1765916042720,0.4435649,87547.0,87546.0,0.00017136]
[1765916043821,0.4445649,87547.0,87546.0,0.00017136]
[1765916044223,0.4445649,87547.0,87534.0,0.0823765]
[1765916044224,0.0861665,87535.0,87534.0,0.0823765]
[1765916044416,0.11294949,87535.0,87534.0,0.0823765]
[1765916044615,0.11294949,87535.0,87534.0,0.03637]
[1765916044819,0.0861672,87529.0,87528.0,0.3608]
[1765916045028,0.086168,87523.0,87522.0,0.03637]
[1765916045329,0.07474,87523.0,87522.0,0.07095]
[1765916045623,0.0861674,87528.0,87527.0,0.07095]
[1765916045828,0.11294371,87528.0,87527.0,0.07095]
[1765916047022,0.11394371,87528.0,87527.0,0.07095]
[1765916047230,0.11394371,87528.0,87527.0,0.03637]
[1765916047424,0.11394371,87528.0,87527.0,0.07095]
[1765916047733,0.11394371,87528.0,87527.0,0.07195]
[1765916047924,0.11394371,87528.0,87527.0,0.03737]
[1765916048226,0.11394371,87528.0,87527.0,0.07195]
[1765916048424,0.11394371,87528.0,87527.0,0.07095]
[1765916048729,0.11394371,87528.0,87527.0,0.07195]
[1765916048933,0.02777631,87528.0,87527.0,0.07195]
[1765916049134,0.38917661,87529.0,87528.0,0.1039374]
[1765916049135,0.3608,87529.0,87528.0,0.1039374]
[1765916049828,0.00017136,87531.0,87530.0,0.07095]
[1765916050434,0.07491136,87531.0,87530.0,0.07095]
[1765916050728,0.00017136,87531.0,87530.0,0.07095]
[1765916050929,0.00117136,87531.0,87530.0,0.07395]
[1765916051231,0.00117136,87531.0,87530.0,0.07495]
[1765916051633,0.00017136,87531.0,87530.0,0.07195]
[1765916051816,0.00117136,87531.0,87530.0,0.07495]
[1765916052944,0.07591136,87531.0,87530.0,0.07495]
[1765916053123,0.07491136,87531.0,87530.0,0.07195]
[1765916053325,0.00117136,87531.0,87530.0,0.07395]
[1765916053934,0.00017136,87531.0,87530.0,0.07195]
[1765916054331,0.03783136,87531.0,87530.0,0.07395]
[1765916054635,0.00117136,87531.0,87530.0,0.07395]
[1765916054830,0.00017136,87531.0,87530.0,0.07195]
[1765916055131,0.4469641,87553.0,87552.0,0.1039342]
[1765916055434,0.49085702,87553.0,87552.0,0.1039342]
[1765916055822,0.46209445,87553.0,87552.0,0.1039342]
[1765916056020,0.3608,87553.0,87552.0,0.1039342]
[1765916057022,0.10264118,87559.0,87558.0,0.0823735]
[1765916057224,0.10129027,87559.0,87558.0,0.0823735]
[1765916057434,0.02655027,87559.0,87558.0,0.0823735]
[1765916058133,0.06321027,87559.0,87558.0,0.0823735]
[1765916058330,0.10129027,87559.0,87558.0,0.0823735]
[1765916058526,0.02655027,87559.0,87558.0,0.0823735]
[1765916059740,0.02755027,87559.0,87558.0,0.0853735]
[1765916060130,0.06421027,87559.0,87558.0,0.0853735]
[1765916060442,0.06421027,87559.0,87558.0,0.0843735]
[1765916060732,0.10229027,87559.0,87558.0,0.0843735]
[1765916060932,0.06421027,87559.0,87558.0,0.0843735]
[1765916061133,0.06321027,87559.0,87558.0,0.0843735]
[1765916061542,0.10129027,87559.0,87558.0,0.0843735]
[1765916061730,0.02655027,87559.0,87558.0,0.0843735]
[1765916061937,0.10129027,87559.0,87558.0,0.0843735]
[1765916065726,0.10229027,87559.0,87558.0,0.0843735]
[1765916066534,0.10129027,87559.0,87558.0,0.0833735]
[1765916067144,0.02655027,87559.0,87558.0,0.0833735]
[1765916067735,0.06321027,87559.0,87558.0,0.0833735]
[1765916068842,0.10129027,87559.0,87558.0,0.0823735]
[1765916069046,0.10129027,87559.0,87558.0,0.0843735]
[1765916070444,0.10129027,87559.0,87558.0,0.0823735]
[1765916070744,0.10129027,87559.0,87558.0,0.0843735]
[1765916071538,0.10129027,87559.0,87558.0,0.07295]
[1765916071832,0.10129027,87559.0,87558.0,0.002]
[1765916072241,0.10129027,87559.0,87544.0,0.02173136]
[1765916072242,0.0861652,87545.0,87544.0,0.00017136]
[1765916073241,0.11272055,87545.0,87544.0,0.00017136]
[1765916074644,0.11272055,87545.0,87544.0,0.03640136]
[1765916074845,0.11272055,87545.0,87544.0,0.00017136]
[1765916075439,0.11372055,87545.0,87544.0,0.00017136]
[1765916075841,0.11372055,87545.0,87544.0,0.00117136]
[1765916081254,0.11272055,87545.0,87544.0,0.00117136]
[1765916081453,0.11372055,87545.0,87544.0,0.00117136]
[1765916081949,0.11372055,87545.0,87544.0,0.00017136]
[1765916082254,0.11372055,87545.0,87544.0,0.00117136]
[1765916082456,0.11272055,87545.0,87544.0,0.00117136]
[1765916082657,0.11372055,87545.0,87544.0,0.00117136]
[1765916084252,0.11372055,87545.0,87544.0,0.00017136]
[1765916084454,0.11372055,87545.0,87544.0,0.00117136]
[1765916084659,0.11372055,87545.0,87524.0,0.0114279]
[1765916084660,0.0822774,87528.0,87524.0,0.0114279]
[1765916085060,0.0822774,87528.0,87521.0,0.0329883]
[1765916085262,0.03507,87522.0,87521.0,0.06007]
[1765916085555,0.07085,87522.0,87521.0,0.1079683]
[1765916088458,0.07085,87522.0,87521.0,0.1089683]
[1765916088965,0.07085,87522.0,87521.0,0.0874083]
[1765916089261,0.07085,87522.0,87521.0,0.0509383]
[1765916089562,0.07085,87522.0,87521.0,0.0874083]
[1765916090260,0.07085,87522.0,87521.0,0.0864083]
[1765916090464,0.07085,87522.0,87521.0,0.0874083]
[1765916094468,0.07085,87522.0,87521.0,0.0884083]
[1765916096864,0.07085,87522.0,87521.0,0.07698]
[1765916097164,0.08843,87522.0,87521.0,0.002]
[1765916097369,0.0822792,87514.0,87513.0,0.03868136]
[1765916097559,0.0822792,87514.0,87513.0,0.00017136]
[1765916097866,0.10889326,87514.0,87513.0,0.00017136]
[1765916098262,0.10889326,87514.0,87513.0,0.03868136]
[1765916098470,0.0822792,87514.0,87513.0,0.07515136]
[1765916098670,0.0832792,87514.0,87513.0,0.07515136]
[1765916099171,0.0832792,87514.0,87513.0,0.03868136]
[1765916099360,0.0832792,87514.0,87513.0,0.00017136]
[1765916100355,0.10989487,87514.0,87513.0,0.00017136]
[1765916101269,0.13693608,87514.0,87513.0,0.00017136]
[1765916101467,0.03507,87499.0,87498.0,0.01371698]
[1765916101667,0.0822812,87499.0,87498.0,0.00228578]
[1765916102172,0.0822822,87491.0,87490.0,0.0499423]
[1765916102475,0.07085,87491.0,87490.0,0.0864123]
[1765916102773,0.00012537,87491.0,87490.0,0.0864123]
[1765916104377,0.00117136,87499.0,87498.0,0.0856013]
[1765916104566,0.00017136,87499.0,87498.0,0.0856013]
[1765916104871,0.37835,87521.0,87498.0,0.4493313]
[1765916104872,0.15684016,87510.0,87498.0,0.4493313]
[1765916105176,0.15684016,87510.0,87509.0,0.0855999]
[1765916105480,0.43361,87516.0,87515.0,0.07417]
[1765916106262,0.4450389,87516.0,87515.0,0.07417]
[1765916107266,0.4450389,87516.0,87515.0,0.0855991]
[1765916107570,0.4460389,87516.0,87515.0,0.0855991]
[1765916108166,0.4450389,87516.0,87515.0,0.0855991]
[1765916108478,0.4460389,87516.0,87515.0,0.07517]
[1765916108863,0.4450389,87516.0,87515.0,0.07517]
[1765916109060,0.4450389,87516.0,87515.0,0.07417]
[1765916109266,0.4450389,87516.0,87515.0,0.07517]
[1765916110077,0.3608,87521.0,87520.0,0.0855984]
[1765916110372,0.46020119,87521.0,87520.0,0.0855984]
[1765916110672,0.09940119,87521.0,87520.0,0.0855984]
[1765916111669,0.10040119,87521.0,87520.0,0.0875984]
[1765916111969,0.11799119,87521.0,87520.0,0.002]
[1765916112368,0.11799119,87521.0,87507.0,0.45747136]
[1765916112369,0.07281,87508.0,87507.0,0.45747136]
[1765916112878,0.07281,87508.0,87507.0,0.46890146]
[1765916113076,0.3608,87519.0,87518.0,0.0855987]
[1765916113380,0.07298136,87524.0,87523.0,0.085598]
[1765916113574,0.0995936,87524.0,87523.0,0.085598]
[1765916114377,0.1005936,87524.0,87523.0,0.085598]
[1765916114881,0.1005936,87524.0,87523.0,0.086598]
[1765916115082,0.0995936,87524.0,87523.0,0.086598]
[1765916117988,0.0995936,87524.0,87523.0,0.087598]
[1765916118788,0.1005936,87524.0,87523.0,0.087598]
[1765916120177,0.0995936,87524.0,87523.0,0.087598]
[1765916120988,0.1005936,87524.0,87523.0,0.087598]
[1765916121184,0.0277836,87524.0,87523.0,0.448398]
[1765916121390,0.00117136,87524.0,87523.0,0.448398]
[1765916121789,0.00117136,87524.0,87523.0,0.45964635]
[1765916122984,0.00117136,87524.0,87523.0,0.448398]
[1765916123178,0.07298136,87524.0,87523.0,0.446398]
[1765916123379,0.03655136,87524.0,87523.0,0.448398]
[1765916123983,0.07298136,87524.0,87523.0,0.446398]
[1765916124182,0.07398136,87524.0,87523.0,0.449398]
[1765916124694,0.07398136,87524.0,87523.0,0.450398]
[1765916124889,0.07398136,87524.0,87523.0,0.449398]
[1765916125095,0.03655136,87524.0,87523.0,0.448398]
[1765916125292,0.08540926,87524.0,87523.0,0.448398]
[1765916125492,0.08540926,87524.0,87523.0,0.087598]
[1765916126496,0.08440926,87524.0,87523.0,0.087598]
[1765916127193,0.07281,87516.0,87515.0,0.43497]
[1765916127493,0.07281,87516.0,87515.0,0.4463991]
[1765916128001,0.07298136,87524.0,87523.0,0.086598]
[1765916128688,0.08440926,87524.0,87523.0,0.086598]
[1765916129591,0.07298136,87524.0,87523.0,0.086598]
[1765916129791,0.00017136,87524.0,87523.0,0.086598]
[1765916129984,0.08440926,87524.0,87523.0,0.085598]
[1765916130181,0.07298136,87524.0,87523.0,0.085598]
[1765916130783,0.07398136,87524.0,87523.0,0.087598]
[1765916131894,0.00017136,87524.0,87523.0,0.448398]
[1765916133398,0.07398136,87524.0,87523.0,0.449398]
[1765916133598,0.07398136,87524.0,87523.0,0.088598]
[1765916134098,0.07298136,87524.0,87523.0,0.086598]
[1765916134293,0.07398136,87524.0,87523.0,0.088598]
[1765916134499,0.07398136,87524.0,87523.0,0.087598]
[1765916134999,0.07298136,87524.0,87523.0,0.087598]
[1765916135892,0.00017136,87524.0,87523.0,0.087598]
[1765916136391,0.06980136,87524.0,87523.0,0.087598]
[1765916136696,0.07080136,87524.0,87523.0,0.087598]
[1765916137293,0.03495136,87524.0,87523.0,0.087598]
[1765916137493,0.03395136,87524.0,87523.0,0.087598]
[1765916137703,0.00017136,87524.0,87523.0,0.448398]
[1765916138893,0.3608,87535.0,87534.0,0.0828366]
[1765916139088,0.02664896,87535.0,87534.0,0.0828366]
[1765916139397,0.15677024,87550.0,87534.0,0.0828366]
[1765916139398,0.02895433,87543.0,87537.0,0.0828362]
[1765916139603,0.06270935,87538.0,87537.0,0.0828362]
[1765916140498,0.03606474,87538.0,87537.0,0.0828362]
[1765916140908,0.03706474,87538.0,87537.0,0.0858362]
[1765916141105,0.07291474,87538.0,87537.0,0.0858362]
[1765916142405,0.07291474,87538.0,87537.0,0.0492562]
[1765916142710,0.09955468,87538.0,87537.0,0.003]
[1765916143018,0.09855468,87538.0,87537.0,0.001]
[1765916143206,0.09955468,87538.0,87537.0,0.003]
[1765916143407,0.09955468,87538.0,87537.0,0.002]
[1765916143801,0.06963,87530.0,87529.0,0.04642856]
[1765916144307,0.06963,87530.0,87529.0,0.08300856]
[1765916144713,0.0810571,87530.0,87529.0,0.08300856]
[1765916145011,0.03378,87530.0,87529.0,0.08300856]
[1765916145207,0.0452067,87533.0,87532.0,0.0828369]
[1765916145416,0.10770276,87533.0,87532.0,0.0828369]
[1765916146410,0.10770276,87533.0,87532.0,0.0838369]
[1765916146710,0.02664606,87533.0,87532.0,0.0838369]
[1765916147012,0.00228474,87538.0,87532.0,0.0838369]
[1765916147013,0.00228474,87538.0,87537.0,0.0828362]
[1765916147209,0.02893301,87538.0,87537.0,0.0828362]
[1765916148114,0.00228474,87538.0,87537.0,0.0828362]
[1765916149502,0.00328474,87538.0,87537.0,0.0858362]
[1765916149707,0.0299329,87538.0,87537.0,0.0858362]
[1765916149910,0.0299329,87538.0,87537.0,0.0868362]
[1765916150208,0.0289329,87538.0,87537.0,0.0838362]
[1765916150410,0.0299329,87538.0,87537.0,0.0868362]
[1765916151613,0.0299329,87538.0,87537.0,0.4476362]
[1765916151917,0.0299329,87538.0,87537.0,0.4466362]
[1765916153411,0.0299329,87538.0,87537.0,0.4456362]
[1765916153608,0.0299329,87538.0,87537.0,0.4466362]
[1765916154010,0.0299329,87538.0,87537.0,0.4456362]
[1765916154211,0.0299329,87538.0,87537.0,0.4466362]
[1765916154612,0.0289329,87538.0,87537.0,0.4446362]
[1765916154814,0.0299329,87538.0,87537.0,0.4476362]
[1765916155415,0.0289329,87538.0,87537.0,0.4446362]
[1765916155616,0.0299329,87538.0,87537.0,0.4456362]
[1765916155812,0.0299329,87538.0,87537.0,0.4466362]
[1765916156017,0.00328474,87538.0,87537.0,0.4466362]
[1765916156215,0.00228474,87538.0,87537.0,0.4436362]
[1765916156416,0.00328474,87538.0,87537.0,0.4476362]
[1765916158036,0.00328474,87538.0,87537.0,0.4466362]
[1765916158926,0.00328474,87538.0,87537.0,0.4476362]
[1765916159513,0.00228474,87538.0,87537.0,0.4446362]
[1765916159715,0.00328474,87538.0,87537.0,0.4476362]
[1765916160533,0.00328474,87538.0,87537.0,0.004]
[1765916160534,0.11098903,87538.0,87537.0,0.004]
[1765916161722,0.0810571,87530.0,87529.0,0.00017136]
[1765916161923,0.46850529,87530.0,87529.0,0.00017136]
[1765916163227,0.46850529,87530.0,87529.0,0.00217136]
[1765916163732,0.46950529,87530.0,87529.0,0.00017136]
[1765916163931,0.47050529,87530.0,87529.0,0.00117136]
[1765916164635,0.46950529,87530.0,87529.0,0.00017136]
[1765916164819,0.47050529,87530.0,87529.0,0.00017136]
[1765916165324,0.0780486,87519.0,87518.0,0.3608]
[1765916165524,0.10467918,87519.0,87518.0,0.3608]
[1765916165718,0.10467918,87519.0,87507.0,0.02132]
[1765916165719,0.07805,87508.0,87507.0,0.09905]
[1765916166329,0.06662,87508.0,87507.0,0.09905]
[1765916166930,0.06662,87508.0,87507.0,0.10005]
[1765916168728,0.0780492,87514.0,87513.0,0.0777293]
[1765916169123,0.03503,87514.0,87513.0,0.0777293]
[1765916169325,0.00017136,87516.0,87515.0,0.0663]
[1765916170322,0.06679136,87516.0,87515.0,0.0663]
[1765916171226,0.06779136,87516.0,87515.0,0.0673]
[1765916171533,0.03620136,87516.0,87515.0,0.0673]
[1765916171831,0.06679136,87516.0,87515.0,0.0663]
[1765916172028,0.06779136,87516.0,87515.0,0.0673]
[1765916172226,0.00117136,87516.0,87515.0,0.0673]
[1765916175732,0.06779136,87516.0,87515.0,0.0787291]
[1765916176638,0.06779136,87516.0,87515.0,0.001]
[1765916176820,0.06779136,87516.0,87507.0,0.02132]
[1765916176821,0.07805,87508.0,87507.0,0.08762]
[1765916178037,0.06662,87504.0,87503.0,0.4271]
[1765916178824,0.06662,87504.0,87503.0,0.0663]
[1765916179024,0.06662,87504.0,87499.0,0.00017136]
[1765916179025,0.06662,87500.0,87499.0,0.00017136]
[1765916179224,0.078051,87500.0,87499.0,0.00017136]
[1765916180435,0.439851,87500.0,87499.0,0.00017136]
[1765916181133,0.440851,87500.0,87499.0,0.00017136]
[1765916181640,0.46643911,87500.0,87499.0,0.00017136]
[1765916181840,0.46843911,87500.0,87499.0,0.00017136]
[1765916182042,0.441851,87500.0,87499.0,0.03311136]
[1765916182231,0.439851,87500.0,87499.0,0.03311136]
[1765916182431,0.441851,87500.0,87499.0,0.03311136]
[1765916182625,0.441851,87500.0,87499.0,0.00017136]
[1765916182842,0.47099099,87500.0,87499.0,0.00017136]
[1765916183040,0.47099099,87500.0,87499.0,0.06647136]
[1765916183237,0.47099099,87500.0,87499.0,0.00017136]
[1765916183437,0.48643099,87500.0,87499.0,0.00017136]
[1765916184131,0.46999099,87500.0,87499.0,0.00017136]
[1765916184337,0.47099099,87500.0,87499.0,0.00017136]
[1765916184542,0.46999099,87500.0,87499.0,0.03311136]
[1765916184852,0.46999099,87500.0,87499.0,0.06647136]
[1765916185026,0.46899099,87500.0,87499.0,0.03311136]
[1765916185226,0.47099099,87500.0,87499.0,0.03311136]
[1765916185429,0.47099099,87500.0,87499.0,0.00017136]
[1765916185630,0.46799099,87500.0,87499.0,0.06647136]
[1765916185831,0.47099099,87500.0,87499.0,0.00017136]
[1765916186436,0.46899099,87500.0,87499.0,0.00017136]
[1765916186631,0.46999099,87500.0,87499.0,0.00017136]
[1765916187137,0.46899099,87500.0,87499.0,0.00017136]
[1765916187442,0.46999099,87500.0,87499.0,0.00017136]
[1765916188444,0.46899099,87500.0,87499.0,0.00017136]
[1765916188644,0.46999099,87500.0,87499.0,0.00017136]
[1765916189245,0.46899099,87500.0,87499.0,0.00017136]
[1765916189445,0.49658493,87500.0,87499.0,0.00017136]
[1765916190140,0.49558493,87500.0,87499.0,0.00017136]
[1765916190346,0.49658493,87500.0,87499.0,0.00017136]
[1765916193234,0.51082493,87500.0,87499.0,0.00017136]
[1765916193437,0.50982493,87500.0,87499.0,0.00017136]
[1765916193647,0.49558493,87500.0,87499.0,0.00017136]
[1765916194346,0.10819099,87500.0,87499.0,0.06443136]
[1765916194648,0.06516999,87500.0,87499.0,0.06443136]
[1765916195244,0.09848999,87500.0,87499.0,0.06443136]
[1765916195446,0.09948999,87500.0,87499.0,0.06443136]
[1765916196351,0.45928999,87500.0,87499.0,0.06543136]
[1765916197044,0.48488817,87500.0,87499.0,0.06443136]
[1765916197343,0.48488817,87500.0,87499.0,0.06543136]
[1765916197534,0.48588817,87500.0,87499.0,0.06543136]
[1765916197739,0.48588817,87500.0,87499.0,0.00117136]
[1765916198049,0.48588817,87500.0,87499.0,0.07693256]
[1765916198639,0.48588817,87500.0,87499.0,0.07593256]
[1765916199050,0.48588817,87500.0,87499.0,0.01160256]
[1765916199349,0.49888817,87500.0,87499.0,0.00017136]
[1765916199649,0.49988817,87500.0,87499.0,0.00017136]
[1765916200351,0.50088817,87500.0,87499.0,0.00017136]
[1765916200649,0.50188817,87500.0,87499.0,0.00017136]
[1765916201150,0.50088817,87500.0,87499.0,0.00017136]
[1765916202647,0.48788817,87500.0,87499.0,0.00017136]
[1765916202842,0.12708817,87500.0,87499.0,0.06450136]
[1765916203248,0.13794817,87500.0,87499.0,0.00017136]
[1765916203645,0.12608817,87500.0,87499.0,0.06450136]
[1765916204153,0.12608817,87500.0,87499.0,0.00017136]
[1765916204340,0.12608817,87500.0,87499.0,0.03311136]
[1765916204741,0.12608817,87500.0,87499.0,0.06450136]
[1765916204941,0.12508817,87500.0,87499.0,0.06450136]
[1765916205347,0.12408817,87500.0,87499.0,0.06450136]
[1765916205547,0.12508817,87500.0,87499.0,0.06450136]
[1765916205747,0.12508817,87500.0,87499.0,0.06550136]
[1765916205950,0.12408817,87500.0,87499.0,0.06550136]
[1765916206755,0.12408817,87500.0,87499.0,0.06650136]
[1765916207052,0.12408817,87500.0,87499.0,0.06550136]
[1765916207247,0.12408817,87500.0,87499.0,0.06650136]
[1765916207949,0.12408817,87500.0,87499.0,0.06550136]
[1765916208155,0.12508817,87500.0,87499.0,0.06650136]
[1765916208950,0.12408817,87500.0,87499.0,0.06650136]
[1765916209545,0.12408817,87500.0,87499.0,0.06550136]
[1765916212850,0.12508817,87500.0,87499.0,0.06650136]
[1765916213558,0.12508817,87500.0,87499.0,0.06550136]
[1765916213761,0.12508817,87500.0,87499.0,0.06650136]
[1765916214153,0.12408817,87500.0,87499.0,0.06550136]
[1765916214462,0.12508817,87500.0,87499.0,0.06650136]
[1765916214955,0.12408817,87500.0,87499.0,0.06550136]
[1765916215859,0.12508817,87500.0,87499.0,0.06650136]
[1765916217249,0.12408817,87500.0,87499.0,0.06550136]
[1765916217449,0.12508817,87500.0,87499.0,0.06650136]
[1765916217957,0.12508817,87500.0,87499.0,0.00217136]
[1765916218146,0.12408817,87500.0,87499.0,0.00217136]
[1765916218554,0.06596,87478.0,87477.0,0.3608]
[1765916218866,0.06596,87475.0,87474.0,0.0938543]
[1765916219053,0.09281836,87475.0,87474.0,0.06433]
[1765916219253,0.09281836,87475.0,87471.0,0.0114347]
[1765916219254,0.06596,87472.0,87471.0,0.0114347]
[1765916220159,0.36097147,87480.0,87468.0,0.0938552]
[1765916220160,0.06596,87469.0,87468.0,0.0938552]
[1765916220461,0.06596,87469.0,87452.0,0.00013804]
[1765916220462,0.06596,87459.0,87452.0,0.00013804]
[1765916220654,0.45376517,87459.0,87455.0,0.0114369]
[1765916220853,0.45376517,87459.0,87452.0,0.00013804]
[1765916221162,0.0773972,87453.0,87452.0,0.00013804]
[1765916221362,0.0773995,87435.0,87434.0,0.03294]
[1765916221556,0.0773995,87435.0,87434.0,0.06433]
[1765916222267,0.07749529,87435.0,87434.0,0.06433]
[1765916222561,0.07749529,87435.0,87434.0,0.06933]
[1765916222952,9.579e-05,87435.0,87434.0,0.06933]
[1765916224362,0.00109579,87435.0,87434.0,0.06933]
[1765916224569,0.00109579,87435.0,87434.0,0.06833]
[1765916225165,0.00017147,87443.0,87442.0,0.0743786]
[1765916226072,0.21631279,87460.0,87459.0,0.0743764]
[1765916226260,0.05925,87460.0,87459.0,0.0743764]
[1765916226464,0.05929437,87460.0,87459.0,0.0743764]
[1765916226865,0.05925,87457.0,87456.0,0.0608668]
[1765916227065,0.42005,87457.0,87456.0,0.0928668]
[1765916227964,0.3608,87457.0,87456.0,0.0928668]
[1765916228380,4.437e-05,87460.0,87456.0,0.0928668]
[1765916228381,4.437e-05,87460.0,87459.0,0.0743764]
[1765916228763,0.00017147,87468.0,87467.0,0.0743753]
[1765916229774,0.03007147,87468.0,87467.0,0.0743753]
[1765916230072,0.00017147,87468.0,87467.0,0.0743753]
[1765916231681,0.00017147,87468.0,87467.0,0.0763753]
[1765916232280,0.06042147,87468.0,87467.0,0.0773753]
[1765916232681,0.06042147,87468.0,87467.0,0.06594]
[1765916233093,0.00117147,87468.0,87467.0,0.06594]
[1765916234183,0.00117147,87468.0,87467.0,0.06394]
[1765916234375,0.05942147,87468.0,87467.0,0.06394]
[1765916234578,0.06042147,87468.0,87467.0,0.06494]
[1765916234882,0.06042147,87468.0,87467.0,0.06594]
[1765916236083,0.00117147,87468.0,87467.0,0.06494]
[1765916237385,0.00117147,87468.0,87467.0,0.06394]
[1765916237586,0.00117147,87468.0,87467.0,0.06494]
[1765916238094,0.06042147,87468.0,87467.0,0.06494]
[1765916238579,0.06042147,87468.0,87467.0,0.06394]
[1765916238782,0.06042147,87468.0,87467.0,0.06594]
[1765916239085,0.05942147,87468.0,87467.0,0.06494]
[1765916239291,0.06042147,87468.0,87467.0,0.06494]
[1765916241192,0.06042147,87468.0,87467.0,0.06394]
[1765916241385,0.05942147,87468.0,87467.0,0.06394]
[1765916241585,0.06042147,87468.0,87467.0,0.06494]
[1765916243482,0.06042147,87468.0,87467.0,0.002]
[1765916244078,0.03107147,87468.0,87467.0,0.06494]
[1765916244586,0.06042147,87468.0,87467.0,0.002]
[1765916244788,0.42122147,87468.0,87467.0,0.002]
[1765916247185,0.44862033,87468.0,87467.0,0.002]
[1765916247692,0.47771954,87468.0,87467.0,0.002]
[1765916248195,0.47771954,87468.0,87467.0,0.06494]
[1765916250596,0.47771954,87468.0,87467.0,0.002]
[1765916250902,0.47771954,87468.0,87467.0,0.03294]
[1765916252599,0.48915474,87468.0,87467.0,0.03294]
[1765916252796,0.48915474,87468.0,87467.0,0.002]
[1765916253390,0.50220474,87468.0,87467.0,0.002]
[1765916254188,0.50220474,87468.0,87467.0,0.001]
[1765916254387,0.0720973,87452.0,87446.0,0.011438]
[1765916254594,0.09949616,87452.0,87443.0,0.0114385]
[1765916254790,0.09949616,87452.0,87440.0,0.0114388]
[1765916254991,0.0730393,87437.0,87436.0,0.0114393]
[1765916255299,0.0616,87437.0,87436.0,0.0712393]
[1765916257297,0.3608,87444.0,87443.0,0.0598]
[1765916257502,0.41971511,87444.0,87443.0,0.0598]
[1765916257800,0.44981511,87444.0,87443.0,0.0598]
[1765916258592,0.44981511,87444.0,87443.0,0.0638]
[1765916258994,0.45081511,87444.0,87443.0,0.0638]
[1765916259197,0.4234,87444.0,87443.0,0.0638]
[1765916260202,0.4234,87444.0,87443.0,0.03285]
[1765916260398,0.45065583,87444.0,87443.0,0.03285]
[1765916260607,0.4234,87444.0,87443.0,0.0638]
[1765916260903,0.4234,87444.0,87443.0,0.004]
[1765916261904,0.4234,87444.0,87443.0,0.0638]
[1765916265204,0.4234,87444.0,87443.0,0.03285]
[1765916265512,0.4348384,87444.0,87443.0,0.004]
[1765916265698,0.4348384,87444.0,87443.0,0.03285]
[1765916265901,0.4348384,87444.0,87443.0,0.0638]
[1765916270013,0.4234,87444.0,87443.0,0.0638]
[1765916270208,0.001,87444.0,87443.0,0.0638]
[1765916272104,0.00017147,87445.0,87444.0,0.0886984]
[1765916273114,0.3608,87453.0,87452.0,0.0712373]
[1765916273306,0.4224,87453.0,87452.0,0.0712373]
[1765916273505,0.3923,87453.0,87452.0,0.0712373]
[1765916274012,0.0730364,87460.0,87459.0,0.0712364]
[1765916275604,0.0740364,87460.0,87459.0,0.0732364]
[1765916276006,0.0740364,87460.0,87459.0,0.0752364]
[1765916277808,0.0740364,87460.0,87459.0,0.0638]
[1765916279813,0.0626,87460.0,87459.0,0.0638]
[1765916280511,0.08987323,87460.0,87459.0,0.004]
[1765916280717,0.08987323,87460.0,87459.0,0.03285]
[1765916281117,0.08987323,87460.0,87459.0,0.0638]
[1765916281602,0.08987323,87460.0,87459.0,0.004]
[1765916282004,0.45067323,87460.0,87459.0,0.004]
[1765916283105,0.45067323,87460.0,87451.0,0.00017147]
[1765916283106,0.0730373,87452.0,87451.0,0.00017147]
[1765916283306,0.0730373,87452.0,87432.0,0.01746]
[1765916283307,0.0730398,87433.0,87432.0,0.07726]
[1765916283507,0.0730402,87430.0,87429.0,0.0712403]
[1765916284014,0.0616,87430.0,87429.0,0.0712403]
[1765916284222,0.0702599,87433.0,87432.0,0.0892099]
[1765916284513,0.0712599,87433.0,87432.0,0.0912099]
[1765916285216,0.0702599,87433.0,87432.0,0.0892099]
[1765916285634,0.0712599,87433.0,87432.0,0.0942099]
[1765916285810,0.05982,87433.0,87432.0,0.0942099]
[1765916286719,0.06082,87433.0,87432.0,0.0942099]
[1765916286926,0.06082,87433.0,87432.0,0.0757699]
[1765916287412,0.06082,87433.0,87432.0,0.0942099]
[1765916288112,0.06082,87433.0,87432.0,0.005]
[1765916288918,0.08819078,87433.0,87432.0,0.005]
[1765916289409,0.06082,87433.0,87432.0,0.005]
[1765916289811,0.08818705,87433.0,87432.0,0.005]
[1765916290208,0.06082,87433.0,87432.0,0.005]
[1765916290409,0.05982,87433.0,87432.0,0.005]
[1765916290622,0.06082,87433.0,87432.0,0.005]
[1765916291718,0.0702599,87432.0,87431.0,0.07077]
[1765916291919,0.0702599,87432.0,87431.0,0.01144]
[1765916292224,0.0702599,87432.0,87431.0,0.04099]
[1765916292823,0.0702599,87432.0,87431.0,0.04499]
[1765916293717,0.0702599,87432.0,87431.0,0.07477]
[1765916293923,0.0712599,87432.0,87431.0,0.07477]
[1765916294526,0.0712599,87432.0,87431.0,0.01544]
[1765916294825,0.0712599,87432.0,87431.0,0.07477]